fUSD/lending_fUSD_20260131
["ID","MTS","AMOUNT","RATE_DAILY","PERIOD"]
[404175118,1769899447900,-1513.13,0.00043287,120]
[404175119,1769899447965,-1513.13,0.00043287,120]
[404175120,1769899448033,-790.44,0.00043287,120]
[404175121,1769899448101,-1513.13,0.00043287,120]
[404175122,1769899448165,-790.44,0.00043287,120]
[404175123,1769899448230,-500.0,0.00043287,120]
[404175124,1769899448295,-1513.13,0.00043287,120]
[404175125,1769899448359,-208.02568074,0.00043287,120]
[404175126,1769899448422,-790.44,0.00043287,120]
[404175127,1769899448486,-1513.13,0.00043287,120]
[404175128,1769899448553,-790.44,0.00043287,120]
[404175129,1769899448619,-1513.13,0.00043287,120]
[404175130,1769899448684,-790.44,0.00043287,120]
[404175131,1769899448749,-1513.13,0.00043287,120]
[404175132,1769899448811,-790.44,0.00043287,120]
[404175133,1769899448876,-1513.13,0.00043287,120]
[404175134,1769899448943,-790.44,0.00043287,120]
[404175135,1769899449013,-351.71666677,0.00043287,120]
[404175136,1769899449082,-1513.13,0.00043287,120]
[404175137,1769899449148,-790.44,0.00043287,120]
[404175138,1769899449212,-1513.13,0.00043287,120]
[404175139,1769899449278,-480.86645706,0.00043287,120]
[404175140,1769899449345,-790.44,0.00043287,120]
[404175141,1769899449410,-1513.13,0.00043287,120]
[404175142,1769899449474,-790.53098746,0.00043287,120]
[404175143,1769899449542,-1513.13,0.00043287,120]
[404175144,1769899449611,-1513.13,0.00043287,120]
[404175145,1769899449677,-1513.36419798,0.00043287,120]
[404175146,1769899449740,-151.0,0.00043287,120]
[404175147,1769899449804,-425.30577944,0.00043287,120]
[404175148,1769899449868,-231.00710687,0.00043287,120]
[404175149,1769899449942,-292.1964251,0.00043287,120]
[404175150,1769899450019,-406.70727319,0.00043287,120]
[404175151,1769899450084,-465.77684504,0.00043287,120]
[404175152,1769899450152,-500.0,0.00043287,120]
[404175153,1769899450216,-317.35435417,0.00043287,120]
[404175154,1769899450280,-500.0,0.00043287,120]
[404175155,1769899450344,-500.0,0.00043287,120]
[404175156,1769899450412,-500.0,0.00043287,120]
[404175157,1769899450476,-500.0,0.00043287,120]
[404175158,1769899450544,-500.0,0.00043287,120]
[404175159,1769899450608,-373.83167575,0.00043287,120]
[404175160,1769899450674,-500.0,0.00043287,120]
[404175161,1769899450741,-500.0,0.00043287,120]
[404175162,1769899450808,-500.0,0.00043287,120]
[404175163,1769899450872,-273.82410679,0.00043287,120]
[404175164,1769899450935,-500.0,0.00043287,120]
[404175165,1769899451000,-500.0,0.00043287,120]
[404175166,1769899451066,-500.0,0.00043287,120]
[404175167,1769899451129,-500.0,0.00043287,120]
[404175168,1769899451188,-180.41685849,0.00043287,120]
[404175169,1769899451249,-490.77669734,0.00043287,120]
[404175170,1769899451369,-512.53545129,0.00043287,120]
[404175171,1769899451430,-423.08094777,0.00043287,120]
[404175172,1769899451489,-254.12883007,0.00043287,120]
[404175173,1769899451553,-306.269729,0.00043287,120]
[404175174,1769899451618,-500.0,0.00043287,120]
[404175175,1769899451683,-645.14139678,0.00043287,120]
[404175176,1769899451748,-28982.13,0.00043287,120]
[404175177,1769899451812,-28982.13,0.00043287,120]
[404175178,1769899451874,-28982.13,0.00043287,120]
[404175179,1769899451936,-28982.13,0.00043287,120]
[404175180,1769899452001,-28982.13,0.00043287,120]
[404175181,1769899452058,-28982.13,0.00043287,120]
[404175182,1769899452122,-28982.13,0.00043287,120]
[404175183,1769899452187,-28982.13,0.00043287,120]
[404175184,1769899452251,-28982.13,0.00043287,120]
[404175185,1769899452314,-28982.13,0.00043287,120]
[404175186,1769899452376,-28982.13,0.00043287,120]
[404175187,1769899452439,-28982.13,0.00043287,120]
[404175188,1769899452500,-28982.13,0.00043287,120]
[404175189,1769899452562,-28982.13,0.00043287,120]
[404175190,1769899452624,-28982.13,0.00043287,120]
[404175191,1769899452686,-28982.13,0.00043287,120]
[404175192,1769899452749,-28982.13,0.00043287,120]
[404175193,1769899452809,-500.0,0.00043287,120]
[404175194,1769899452867,-28982.13,0.00043287,120]
[404175195,1769899452928,-223.52306339,0.00043287,120]
[404175196,1769899452994,-317.64397191,0.00043287,120]
[404175197,1769899453056,-28982.13,0.00043287,120]
[404175198,1769899453120,-28982.13,0.00043287,120]
[404175199,1769899453187,-28982.13,0.00043287,120]
[404175200,1769899453250,-28982.13,0.00043287,120]
[404175201,1769899453313,-250.17640495,0.00043287,120]
[404175202,1769899453376,-28982.13,0.00043287,120]
[404175203,1769899453444,-28982.30264549,0.00043287,120]
[404175204,1769899453511,-342.22873801,0.00043287,120]
[404175205,1769899453577,-500.0,0.00043287,120]
[404175206,1769899453641,-345.7348824,0.00043287,120]
[404175207,1769899453703,-382.85424214,0.00043287,120]
[404175208,1769899453765,-686.7,0.00043287,120]
[404175209,1769899453830,-686.7,0.00043287,120]
[404175210,1769899453894,-500.0,0.00043287,120]
[404175211,1769899453958,-686.7,0.00043287,120]
[404175212,1769899454025,-430.72282091,0.00043287,120]
[404175213,1769899454094,-686.7,0.00043287,120]
[404175214,1769899454156,-543.18704834,0.00043287,120]
[404175215,1769899454218,-686.7,0.00043287,120]
[404175216,1769899454283,-686.7,0.00043287,120]
[404175217,1769899454349,-686.7,0.00043287,120]
[404175218,1769899454413,-686.7,0.00043287,120]
[404175219,1769899454476,-686.7,0.00043287,120]
[404175220,1769899454542,-417.89876022,0.00043287,120]
[404175221,1769899454609,-686.7,0.00043287,120]
[404175222,1769899454672,-500.0,0.00043287,120]
[404175223,1769899454734,-686.7,0.00043287,120]
[404175224,1769899454797,-500.0,0.00043287,120]
[404175225,1769899454860,-686.7,0.00043287,120]
[404175226,1769899454925,-247.34772327,0.00043287,120]
[404175227,1769899454993,-500.0,0.00043287,120]
[404175228,1769899455070,-686.7,0.00043287,120]
[404175229,1769899455134,-500.0,0.00043287,120]
[404175230,1769899455196,-686.7,0.00043287,120]
[404175231,1769899455261,-500.0,0.00043287,120]
[404175232,1769899455324,-686.7,0.00043287,120]
[404175233,1769899455388,-500.0,0.00043287,120]
[404175234,1769899455455,-686.7,0.00043287,120]
[404175235,1769899455520,-500.0,0.00043287,120]
[404175236,1769899455591,-686.7,0.00043287,120]
[404175237,1769899455657,-500.0,0.00043287,120]
[404175238,1769899455720,-686.7,0.00043287,120]
[404175239,1769899455785,-500.0,0.00043287,120]
[404175240,1769899455849,-686.7,0.00043287,120]
[404175241,1769899455911,-500.0,0.00043287,120]
[404175242,1769899455979,-686.7,0.00043287,120]
[404175243,1769899456049,-500.0,0.00043287,120]
[404175244,1769899456114,-686.7,0.00043287,120]
[404175245,1769899456179,-500.0,0.00043287,120]
[404175246,1769899456247,-686.7,0.00043287,120]
[404175247,1769899456307,-500.0,0.00043287,120]
[404175248,1769899456368,-686.7,0.00043287,120]
[404175249,1769899456430,-500.0,0.00043287,120]
[404175250,1769899456494,-686.73968292,0.00043287,120]
[404175251,1769899456558,-500.0,0.00043287,120]
[404175252,1769899456622,-443.91683494,0.00043287,120]
[404175253,1769899456684,-500.0,0.00043287,120]
[404175254,1769899456744,-500.0,0.00043287,120]
[404175255,1769899456808,-233.28786228,0.00043287,120]
[404175256,1769899456879,-500.0,0.00043287,120]
[404175257,1769899456940,-500.0,0.00043287,120]
[404175258,1769899457002,-488.32414982,0.00043287,120]
[404175259,1769899457065,-449.00547693,0.00043287,120]
[404175260,1769899457128,-500.0,0.00043287,120]
[404175261,1769899457190,-255.83285851,0.00043287,120]
[404175262,1769899457252,-161.947091,0.00043287,120]
[404175263,1769899457312,-656.75,0.00043287,120]
[404175264,1769899457375,-656.75,0.00043287,120]
[404175265,1769899457436,-337.10376727,0.00043287,120]
[404175266,1769899457597,-656.75,0.00043287,120]
[404175267,1769899457659,-656.75,0.00043287,120]
[404175268,1769899457721,-500.0,0.00043287,120]
[404175269,1769899457783,-656.75,0.00043287,120]
[404175270,1769899457845,-500.0,0.00043287,120]
[404175271,1769899457906,-656.75,0.00043287,120]
[404175272,1769899457967,-500.0,0.00043287,120]
[404175273,1769899458031,-656.75,0.00043287,120]
[404175274,1769899458092,-500.0,0.00043287,120]
[404175275,1769899458153,-656.75,0.00043287,120]
[404175276,1769899458215,-656.75,0.00043287,120]
[404175277,1769899458275,-500.0,0.00043287,120]
[404175278,1769899458339,-656.75,0.00043287,120]
[404175279,1769899458399,-642.44168767,0.00043287,120]
[404175280,1769899458462,-232.56302579,0.00043287,120]
[404175281,1769899458526,-656.75,0.00043287,120]
[404175282,1769899458593,-384.24068255,0.00043287,120]
[404175283,1769899458658,-656.75,0.00043287,120]
[404175284,1769899458723,-656.75,0.00043287,120]
[404175285,1769899458786,-656.75,0.00043287,120]
[404175286,1769899458849,-656.75,0.00043287,120]
[404175287,1769899458913,-656.75,0.00043287,120]
[404175288,1769899458974,-656.75,0.00043287,120]
[404175289,1769899459040,-656.75,0.00043287,120]
[404175290,1769899459102,-656.75,0.00043287,120]
[404175291,1769899459165,-500.0,0.00043287,120]
[404175292,1769899459232,-656.75,0.00043287,120]
[404175293,1769899459297,-656.75,0.00043287,120]
[404175294,1769899459361,-656.75,0.00043287,120]
[404175295,1769899459424,-822.83,0.00043287,120]
[404175296,1769899459490,-656.75,0.00043287,120]
[404175297,1769899459558,-447.4873541,0.00043287,120]
[404175298,1769899459624,-822.83,0.00043287,120]
[404175299,1769899459689,-656.86581984,0.00043287,120]
[404175300,1769899459754,-822.83,0.00043287,120]
[404175301,1769899459816,-822.83,0.00043287,120]
[404175302,1769899459879,-822.83,0.00043287,120]
[404175303,1769899459942,-822.83,0.00043287,120]
[404175304,1769899460004,-822.83,0.00043287,120]
[404175305,1769899460067,-822.83,0.00043287,120]
[404175306,1769899460132,-822.83,0.00043287,120]
[404175307,1769899460196,-822.83,0.00043287,120]
[404175308,1769899460265,-354.39445221,0.00043287,120]
[404175309,1769899460327,-822.83,0.00043287,120]
[404175310,1769899460389,-822.83,0.00043287,120]
[404175311,1769899460453,-822.83,0.00043287,120]
[404175312,1769899460515,-822.83,0.00043287,120]
[404175313,1769899460578,-822.83,0.00043287,120]
[404175314,1769899460642,-822.83,0.00043287,120]
[404175315,1769899460704,-822.83,0.00043287,120]
[404175316,1769899460767,-305.01556199,0.00043287,120]
[404175317,1769899460830,-822.83,0.00043287,120]
[404175318,1769899460889,-379.26817153,0.00043287,120]
[404175319,1769899460950,-822.83,0.00043287,120]
[404175320,1769899461010,-822.83,0.00043287,120]
[404175321,1769899461071,-500.0,0.00043287,120]
[404175322,1769899461130,-822.83,0.00043287,120]
[404175323,1769899461189,-500.0,0.00043287,120]
[404175324,1769899461248,-500.0,0.00043287,120]
[404175325,1769899461307,-822.83,0.00043287,120]
[404175326,1769899461366,-500.0,0.00043287,120]
[404175327,1769899461425,-822.83,0.00043287,120]
[404175328,1769899461484,-433.30903012,0.00043287,120]
[404175329,1769899461545,-500.0,0.00043287,120]
[404175330,1769899461606,-822.94668543,0.00043287,120]
[404175331,1769899461666,-500.0,0.00043287,120]
[404175332,1769899461727,-500.0,0.00043287,120]
[404175333,1769899461789,-369.60010714,0.00043287,120]
[404175334,1769899461853,-483.13511139,0.00043287,120]
[404175335,1769899461915,-529.79131822,0.00043287,120]
[404175336,1769899461976,-493.59570989,0.00043287,120]
[404175337,1769899462041,-354.39699803,0.00043287,120]
[404175338,1769899462103,-502.19,0.00043287,120]
[404175339,1769899462164,-188.57609173,0.00043287,120]
[404175340,1769899462225,-500.0,0.00043287,120]
[404175341,1769899462288,-500.0,0.00043287,120]
[404175342,1769899462350,-500.0,0.00043287,120]
[404175343,1769899462417,-500.0,0.00043287,120]
[404175344,1769899462479,-500.41,0.00043287,120]
[404175345,1769899462541,-353.17860704,0.00043287,120]
[404175346,1769899462605,-1120.0,0.00043287,120]
[404175347,1769899462667,-1120.0,0.00043287,120]
[404175348,1769899462728,-1120.0,0.00043287,120]
[404175349,1769899462792,-1120.0,0.00043287,120]
[404175350,1769899463133,-410.01964129,0.00043287,120]
[404175351,1769899463192,-1120.0,0.00043287,120]
[404175352,1769899463252,-1120.0,0.00043287,120]
[404175353,1769899463320,-500.0,0.00043287,120]
[404175354,1769899463382,-1120.0,0.00043287,120]
[404175355,1769899463446,-500.0,0.00043287,120]
[404175356,1769899463512,-1120.0,0.00043287,120]
[404175357,1769899463576,-578.49,0.00043287,120]
[404175358,1769899463638,-1120.0,0.00043287,120]
[404175359,1769899463700,-1120.0,0.00043287,120]
[404175360,1769899463766,-211.96194749,0.00043287,120]
[404175361,1769899463832,-1120.0,0.00043287,120]
[404175362,1769899463895,-1120.0,0.00043287,120]
[404175363,1769899463957,-398.11473134,0.00043287,120]
[404175364,1769899464019,-1120.0,0.00043287,120]
[404175365,1769899464082,-1120.0,0.00043287,120]
[404175366,1769899464144,-1120.0,0.00043287,120]
[404175367,1769899464205,-1120.0,0.00043287,120]
[404175368,1769899464266,-1120.0,0.00043287,120]
[404175369,1769899464324,-1120.0,0.00043287,120]
[404175370,1769899464383,-1120.0,0.00043287,120]
[404175371,1769899464443,-1120.0,0.00043287,120]
[404175372,1769899464503,-1120.0,0.00043287,120]
[404175373,1769899464569,-1120.0,0.00043287,120]
[404175374,1769899464630,-1120.0,0.00043287,120]
[404175375,1769899464692,-1120.20887833,0.00043287,120]
[404175376,1769899464755,-500.0,0.00043287,120]
[404175377,1769899464817,-500.0,0.00043287,120]
[404175378,1769899464891,-336.0,0.00043287,120]
[404175379,1769899464958,-304.7425219,0.00043287,120]
[404175380,1769899465023,-249.64576034,0.00043287,120]
[404175381,1769899465086,-500.0,0.00043287,120]
[404175382,1769899465151,-337.9110505,0.00043287,120]
[404175383,1769899465217,-500.0,0.00043287,120]
[404175384,1769899465284,-500.0,0.00043287,120]
[404175385,1769899465351,-500.0,0.00043287,120]
[404175386,1769899465417,-259.47805932,0.00043287,120]
[404175387,1769899465482,-500.0,0.00043287,120]
[404175388,1769899465546,-500.0,0.00043287,120]
[404175389,1769899465611,-344.643871,0.00043287,120]
[404175390,1769899465676,-500.0,0.00043287,120]
[404175391,1769899465742,-160.72,0.00043287,120]
[404175392,1769899465811,-375.06615481,0.00043287,120]
[404175393,1769899465879,-288.03016221,0.00043287,120]
[404175394,1769899465942,-500.0,0.00043287,120]
[404175395,1769899466006,-500.0,0.00043287,120]
[404175396,1769899466067,-500.0,0.00043287,120]
[404175397,1769899466126,-500.0,0.00043287,120]
[404175398,1769899466186,-500.0,0.00043287,120]
[404175399,1769899466250,-500.0,0.00043287,120]
[404175400,1769899466311,-500.0,0.00043287,120]
[404175401,1769899466373,-500.0,0.00043287,120]
[404175402,1769899466437,-500.0,0.00043287,120]
[404175403,1769899466497,-500.0,0.00043287,120]
[404175404,1769899466562,-212.33077693,0.00043287,120]
[404175405,1769899466625,-500.0,0.00043287,120]
[404175406,1769899466687,-500.0,0.00043287,120]
[404175407,1769899466750,-500.0,0.00043287,120]
[404175408,1769899466815,-500.0,0.00043287,120]
[404175409,1769899466877,-500.0,0.00043287,120]
[404175410,1769899466940,-273.84991084,0.00043287,120]
[404175411,1769899467003,-500.0,0.00043287,120]
[404175412,1769899467069,-500.0,0.00043287,120]
[404175413,1769899467130,-500.0,0.00043287,120]
[404175414,1769899467192,-442.94555355,0.00043287,120]
[404175415,1769899467253,-500.0,0.00043287,120]
[404175416,1769899467373,-500.0,0.00043287,120]
[404175417,1769899467433,-352.12610889,0.00043287,120]
[404175418,1769899467492,-500.0,0.00043287,120]
[404175419,1769899467552,-330.38,0.00043287,120]
[404175420,1769899467612,-500.0,0.00043287,120]
[404175421,1769899467671,-500.0,0.00043287,120]
[404175422,1769899467730,-430.66660889,0.00043287,60]
[404175423,1769899467792,-500.0,0.00043287,120]
[404175424,1769899467854,-500.0,0.00043287,120]
[404175425,1769899467915,-500.0,0.00043287,120]
[404175426,1769899467976,-500.0,0.00043287,120]
[404175427,1769899468039,-500.0,0.00043287,120]
[404175428,1769899468099,-350.81162524,0.00043287,120]
[404175429,1769899468157,-500.0,0.00043287,120]
[404175430,1769899468221,-500.0,0.00043287,120]
[404175431,1769899468280,-500.0,0.00043287,120]
[404175432,1769899468338,-500.0,0.00043287,120]
[404175433,1769899468396,-191.90838723,0.00043287,120]
[404175434,1769899468454,-489.73578686,0.00043287,120]
[404175435,1769899468514,-408.38785566,0.00043287,120]
[404175436,1769899468576,-678.55,0.00043287,120]
[404175437,1769899468639,-678.55,0.00043287,120]
[404175438,1769899468697,-500.0,0.00043287,120]
[404175439,1769899468753,-500.0,0.00043287,120]
[404175440,1769899468809,-500.0,0.00043287,120]
[404175441,1769899468866,-500.0,0.00043287,120]
[404175442,1769899468922,-678.55,0.00043287,120]
[404175443,1769899468978,-678.55,0.00043287,120]
[404175444,1769899469040,-678.55,0.00043287,120]
[404175445,1769899469099,-678.55,0.00043287,120]
[404175446,1769899469159,-500.0,0.00043287,120]
[404175447,1769899469220,-678.55,0.00043287,120]
[404175448,1769899469283,-500.0,0.00043287,120]
[404175449,1769899469345,-678.55,0.00043287,120]
[404175450,1769899469407,-500.0,0.00043287,120]
[404175451,1769899469469,-678.55,0.00043287,120]
[404175452,1769899469532,-500.0,0.00043287,120]
[404175453,1769899469595,-678.55,0.00043287,120]
[404175454,1769899469660,-500.0,0.00043287,120]
[404175455,1769899469720,-678.55,0.00043287,120]
[404175456,1769899469782,-678.55,0.00043287,120]
[404175457,1769899469844,-500.0,0.00043287,120]
[404175458,1769899469907,-678.55,0.00043287,120]
[404175459,1769899469971,-369.17118921,0.00043287,120]
[404175460,1769899470037,-678.55,0.00043287,120]
[404175461,1769899470099,-678.55,0.00043287,120]
[404175462,1769899470160,-678.55,0.00043287,120]
[404175463,1769899470220,-678.55,0.00043287,120]
[404175464,1769899470278,-678.55,0.00043287,120]
[404175465,1769899470341,-678.55,0.00043287,120]
[404175466,1769899470397,-678.55,0.00043287,120]
[404175467,1769899470454,-678.55,0.00043287,120]
[404175468,1769899470513,-678.55,0.00043287,120]
[404175469,1769899470578,-286.39666983,0.00043287,120]
[404175470,1769899470640,-678.55,0.00043287,120]
[404175471,1769899470702,-678.552726,0.00043287,120]
[404175472,1769899470763,-325.61975982,0.00043287,120]
[404175473,1769899470823,-1525.66,0.00043287,120]
[404175474,1769899470883,-1525.66,0.00043287,120]
[404175475,1769899470942,-1525.66,0.00043287,120]
[404175476,1769899471002,-1525.66,0.00043287,120]
[404175477,1769899471060,-1525.66,0.00043287,120]
[404175478,1769899471120,-1525.66,0.00043287,120]
[404175479,1769899471179,-550.98817816,0.00043287,70]
[404175480,1769899471239,-1729.3747,0.00043292,30]
[404175481,1769899471298,-213.317743,0.00043298,120]
[404175482,1769899471358,-211.39592417,0.00043298,120]
[404175483,1769899471417,-4500.0,0.000433,47]
[404175484,1769899471474,-297.2557,0.000433,120]
[404175485,1769899471532,-431.39473,0.000433,41]
[404175486,1769899471589,-150.0,0.00043316,30]
[404175487,1769899471645,-150.0,0.00043341,30]
[404175488,1769899471703,-150.0,0.00043384,30]
[404175489,1769899471762,-500.0,0.00043463,30]
[404175490,1769899471823,-200.0,0.00043478,30]
[404175491,1769899471880,-641.24641876,0.00043489,30]
[404175492,1769899471936,-5254.52,0.00043493,120]
[404175493,1769899471993,-500.0,0.00043493,30]
[404175494,1769899472052,-999.99,0.00043496,30]
[404175495,1769899472112,-386.82601037,0.00043496,30]
[404175496,1769899472174,-386.82601037,0.00043496,30]
[404175497,1769899472232,-10000.0,0.00043498,30]
[404175498,1769899472289,-3690.0,0.00043498,30]
[404175499,1769899472347,-280.31906451,0.00043498,30]
[404175500,1769899472402,-1564.0,0.00043499,30]
[404175501,1769899472458,-782.0,0.00043499,30]
[404175502,1769899472517,-10000.0,0.000435,30]
[404175503,1769899472575,-4270.0,0.000435,30]
[404175504,1769899472632,-250.0,0.000435,71]
[404175505,1769899472688,-300.0,0.000435,71]
[404175506,1769899472750,-150.0,0.000435,67]
[404175507,1769899472811,-207.87,0.000435,67]
[404175508,1769899472872,-239.85,0.000435,67]
[404175509,1769899472935,-253.0,0.000435,43]
[404175510,1769899472996,-307.0,0.000435,30]
[404175511,1769899473057,-468.28687418,0.000435,30]
[404175512,1769899473232,-150.0,0.000435,60]
[404175513,1769899473293,-200.0,0.000435,30]
[404175514,1769899473354,-924.0,0.000435,30]
[404175515,1769899473415,-993.0,0.000435,30]
[404175516,1769899473476,-391.0,0.00043501,30]
[404175517,1769899473538,-196.0,0.00043501,30]
[404175518,1769899473615,-33613.63187363,0.00043502,30]
[404175519,1769899473677,-33613.63187363,0.00043502,30]
[404175520,1769899473741,-33613.63187363,0.00043502,30]
[404175521,1769899473806,-33613.63187363,0.00043502,30]
[404175522,1769899473867,-150.0,0.00043502,120]
[404175523,1769899473928,-4105.29579425,0.00043502,30]
[404175524,1769899473989,-437.06583689,0.00043504,60]
[404175525,1769899474048,-466.49289447,0.00043504,30]
[404175526,1769899474107,-6246.93469839,0.00043504,30]
[404175527,1769899474168,-224.31,0.00043507,30]
[404175528,1769899474226,-485.33,0.00043507,30]
[404175529,1769899474283,-485.33,0.00043507,30]
[404175530,1769899474341,-485.33,0.00043507,30]
[404175531,1769899474400,-485.33,0.00043507,30]
[404175532,1769899474458,-485.33,0.00043507,30]
[404175533,1769899474520,-485.33,0.00043507,30]
[404175534,1769899474584,-485.33,0.00043507,30]
[404175535,1769899474647,-485.33,0.00043507,30]
[404175536,1769899474710,-485.33,0.00043507,30]
[404175537,1769899474773,-485.33,0.00043507,30]
[404175538,1769899474836,-485.33,0.00043507,30]
[404175539,1769899474898,-485.33,0.00043507,30]
[404175540,1769899474961,-485.33,0.00043507,30]
[404175541,1769899475023,-330.21,0.00043507,30]
[404175542,1769899475083,-1205.607349,0.00043507,30]
[404175543,1769899475145,-1205.607349,0.00043507,30]
[404175544,1769899475206,-150.0,0.00043507,30]
[404175545,1769899475267,-188.75,0.00043507,30]
[404175546,1769899475329,-560.32265506,0.00043507,30]
[404175547,1769899475393,-387.0,0.00043511,30]
[404175548,1769899475457,-200.0,0.00043517,30]
[404175549,1769899475522,-485.33,0.00043517,30]
[404175550,1769899475587,-485.33,0.00043517,30]
[404175551,1769899475653,-485.33,0.00043517,30]
[404175552,1769899475715,-485.33,0.00043517,30]
[404175553,1769899475777,-485.33,0.00043517,30]
[404175554,1769899475839,-285.01,0.00043517,30]
[404175555,1769899475900,-161.27,0.00043517,120]
[404175556,1769899475962,-1000.0,0.00043517,30]
[404175557,1769899476023,-1000.0,0.00043517,30]
[404175558,1769899476082,-1000.0,0.00043517,30]
[404175559,1769899476143,-1000.0,0.00043517,30]
[404175560,1769899476204,-1000.0,0.00043517,30]
[404175561,1769899476265,-1000.0,0.00043517,30]
[404175562,1769899476327,-1000.0,0.00043517,30]
[404175563,1769899476390,-1094.46,0.00043517,30]
[404175564,1769899476448,-150.0,0.0004352,30]
[404175565,1769899476506,-150.0,0.0004352,30]
[404175566,1769899476567,-150.0,0.0004352,30]
[404175567,1769899476628,-150.0,0.00043572,30]
[404175568,1769899476688,-164.09,0.00043582,120]
[404175569,1769899476749,-150.0,0.00043592,30]
[404175570,1769899476813,-150.0,0.00043634,120]
[404175571,1769899476876,-4387.0,0.00043634,30]
[404175572,1769899476937,-150.0,0.00043656,30]
[404175573,1769899476998,-152.0,0.000437,120]
[404175574,1769899477058,-200.0,0.000437,120]
[404175575,1769899477120,-150.0,0.00043705,30]
[404175576,1769899477181,-156.42836429,0.00043726,30]
[404175577,1769899477241,-150.0,0.00043792,30]
[404175578,1769899477299,-150.0,0.00043792,30]
[404175579,1769899477357,-192.81219846,0.000438,120]
[404175580,1769899477414,-152.0,0.000438,120]
[404175581,1769899477470,-150.0,0.00043828,30]
[404175582,1769899477531,-2442.68302711,0.00043828,30]
[404175583,1769899477594,-150.0,0.00043828,30]
[404175584,1769899477653,-299.08137323,0.00043828,30]
[404175585,1769899477717,-150.0,0.00043842,30]
[404175586,1769899477779,-150.0,0.0004386,30]
[404175587,1769899477838,-150.0,0.0004386,30]
[404175588,1769899477898,-150.0,0.00043928,30]
[404175589,1769899477954,-150.0,0.00043938,30]
[404175590,1769899478010,-150.0,0.0004394,120]
[404175591,1769899478070,-558.100021,0.00044,57]
[404175592,1769899478132,-150.0,0.00044064,30]
[404175593,1769899478193,-4387.0,0.0004407,30]
[404175594,1769899478254,-150.0,0.00044093,30]
[404175595,1769899478314,-1000.0,0.00044109,120]
[404175596,1769899478599,-150.0,0.00044138,30]
[404175597,1769899478664,-156.42836429,0.00044192,30]
[404175598,1769899478730,-160.15741891,0.000442,120]
[404175599,1769899478793,-176.9126022,0.000442,120]
[404175600,1769899478857,-186.43042814,0.000442,120]
[404175601,1769899478917,-466.27965994,0.000442,120]
[404175602,1769899478981,-201.25033978,0.000442,120]
[404175603,1769899479045,-180.35339017,0.000442,120]
[404175604,1769899479109,-173.47576183,0.000442,120]
[404175605,1769899479168,-221.78834278,0.000442,120]
[404175606,1769899479232,-180.10874508,0.000442,120]
[404175607,1769899479297,-150.0,0.000442,30]
[404175608,1769899479361,-150.0,0.000442,30]
[404175609,1769899479426,-150.0,0.000442,30]
[404175610,1769899479489,-159.08249396,0.0004425,120]
[404175611,1769899479553,-150.0,0.00044268,30]
[404175612,1769899479619,-150.0916177,0.00044273,112]
[404175613,1769899479687,-152.0,0.000443,120]
[404175614,1769899479757,-150.0,0.00044305,30]
[404175615,1769899479823,-150.0,0.00044336,30]
[404175616,1769899479886,-150.0,0.00044343,30]
[404175617,1769899479947,-500.0,0.00044346,30]